fUST/lending_fUST_20250503
["ID","MTS","AMOUNT","RATE_DAILY","PERIOD"]
[359637436,1746204631855,-222.72,0.00019168,3]
[359637438,1746204631865,-668.16,0.00019168,3]
[359637440,1746204631875,-328.9211281,0.00019169,2]
[359637442,1746204631887,-1005.19469772,0.0001917,2]
[359637444,1746204631897,-92406.44967234,0.0001917,2]
[359637447,1746204631910,-871.81032766,0.0001917,2]
[359637448,1746204631919,-457.80598948,0.00019173,2]
[359637451,1746204631929,-500.0,0.00019173,2]
[359637455,1746204631940,-500.0,0.00019173,2]
[359637457,1746204631950,-500.0,0.00019173,2]
[359637459,1746204631960,-500.0,0.00019173,2]
[359637461,1746204631970,-500.0,0.00019173,2]
[359637464,1746204631980,-500.0,0.00019173,2]
[359637466,1746204631990,-500.0,0.00019173,2]
[359637468,1746204632000,-500.0,0.00019173,2]
[359637470,1746204632010,-408.74,0.00019178,2]
[359637471,1746204632020,-400.0,0.00019178,2]
[359637473,1746204632030,-400.0,0.00019178,2]
[359637475,1746204632040,-400.0,0.00019178,2]
[359637477,1746204632050,-400.0,0.00019178,2]
[359637479,1746204632060,-400.0,0.00019178,2]
[359637481,1746204632070,-400.0,0.00019178,2]
[359637483,1746204632080,-400.0,0.00019178,2]
[359637484,1746204632090,-400.0,0.00019178,2]
[359637485,1746204632100,-400.0,0.00019178,2]
[359637487,1746204632110,-241.49899902,0.00019178,2]
[359637489,1746204632120,-400.0,0.00019178,2]
[359637490,1746204632130,-400.0,0.00019178,2]
[359637492,1746204632140,-430.1,0.00019178,2]
[359637494,1746204632149,-302.08398818,0.00019178,2]
[359637496,1746204632159,-400.0,0.00019178,2]
[359637498,1746204632169,-189.29116691,0.00019178,2]
[359637499,1746204632178,-400.0,0.00019178,2]
[359637502,1746204632193,-744.78,0.00019178,2]
[359637503,1746204632203,-400.0,0.00019178,2]
[359637505,1746204632213,-400.0,0.00019178,2]
[359637506,1746204632223,-400.0,0.00019178,2]
[359637508,1746204632232,-400.0,0.00019178,2]
[359637509,1746204632242,-400.0,0.00019178,2]
[359637511,1746204632254,-400.0,0.00019178,2]
[359637513,1746204632265,-400.0,0.00019178,2]
[359637515,1746204632275,-400.0,0.00019178,2]
[359637517,1746204632285,-400.0,0.00019178,2]
[359637519,1746204632295,-471.64,0.00019178,2]
[359637521,1746204632305,-976.96,0.00019178,2]
[359637523,1746204632315,-400.0,0.00019178,2]
[359637524,1746204632325,-341.16426471,0.00019178,2]
[359637525,1746204632334,-400.0,0.00019178,2]
[359637526,1746204632344,-548.25,0.00019178,2]
[359637527,1746204632353,-448.74,0.00019178,2]
[359637528,1746204632362,-637.05,0.00019178,2]
[359637529,1746204632372,-446.11,0.00019178,2]
[359637530,1746204632381,-400.0,0.00019178,2]
[359637531,1746204632391,-512.19,0.00019178,2]
[359637532,1746204632402,-460.17,0.00019178,2]
[359637533,1746204632411,-400.0,0.00019178,2]
[359637534,1746204632422,-854.84,0.00019178,2]
[359637535,1746204632431,-400.0,0.00019178,2]
[359637536,1746204632441,-400.0,0.00019178,2]
[359637537,1746204632451,-753.3,0.00019178,2]
[359637538,1746204632460,-698.78,0.00019178,2]
[359637539,1746204632470,-400.0,0.00019178,2]
[359637540,1746204632479,-500.0,0.00019178,2]
[359637541,1746204632489,-400.0,0.00019178,2]
[359637542,1746204632498,-569.85,0.00019178,2]
[359637543,1746204632602,-163.69893527,0.00019178,2]
[359637544,1746204632613,-400.0,0.00019178,2]
[359637545,1746204632623,-400.0,0.00019178,2]
[359637546,1746204632633,-400.0,0.00019178,2]
[359637547,1746204632642,-400.0,0.00019178,2]
[359637548,1746204632651,-400.0,0.00019178,2]
[359637549,1746204632660,-400.0,0.00019178,2]
[359637550,1746204632669,-972.98,0.00019178,2]
[359637551,1746204632678,-359.4538353,0.00019178,2]
[359637552,1746204632688,-500.0,0.00019178,2]
[359637553,1746204632697,-400.0,0.00019178,2]
[359637554,1746204632706,-400.0,0.00019178,2]
[359637555,1746204632715,-400.0,0.00019178,2]
[359637556,1746204632724,-402.6,0.00019178,2]
[359637557,1746204632734,-400.0,0.00019178,2]
[359637558,1746204632743,-400.0,0.00019178,2]
[359637560,1746204632752,-400.0,0.00019178,2]
[359637561,1746204632762,-400.0,0.00019178,2]
[359637562,1746204632771,-584.73,0.00019178,2]
[359637564,1746204632781,-833.08,0.00019178,2]
[359637565,1746204632791,-400.0,0.00019178,2]
[359637567,1746204632800,-436.81,0.00019178,2]
[359637569,1746204632809,-502.33157721,0.00019178,2]
[359637571,1746204632818,-400.0,0.00019178,2]
[359637573,1746204632827,-400.0,0.00019178,2]
[359637575,1746204632836,-400.0,0.00019178,2]
[359637576,1746204632846,-255.293564,0.00019178,2]
[359637579,1746204632855,-400.0,0.00019178,2]
[359637581,1746204632865,-1002.73,0.00019178,2]
[359637583,1746204632875,-400.0,0.00019178,2]
[359637584,1746204632885,-400.0,0.00019178,2]
[359637586,1746204632895,-343.65094478,0.00019178,2]
[359637627,1746204637816,-56.34905522,0.00019178,2]
[359637629,1746204637826,-400.0,0.00019178,2]
[359637631,1746204637835,-400.0,0.00019178,2]
[359637633,1746204637845,-60.00257393,0.00019178,2]
[359637636,1746204637856,-339.99742607,0.00019178,2]
[359637638,1746204637866,-500.0,0.00019178,2]
[359637640,1746204637875,-400.0,0.00019178,2]
[359637642,1746204637884,-236.85686283,0.00019178,2]
[359637651,1746204637964,2007.5,0.00021,10]
[359638866,1746205602116,-1346.7653809,0.00018164,2]
[359638867,1746205602137,-475.901046,0.00018596,2]
[359638868,1746205602157,-1333.14532948,0.000189,2]
[359638869,1746205602179,-164.21011832,0.00019078,2]
[359638870,1746205602201,-1009.9815587,0.00019134,2]
[359638871,1746205602224,-587.3638027,0.00019135,2]
[359638872,1746205602246,-541.0,0.00019167,2]
[359638873,1746205602267,-517.5,0.00019168,3]
[359638874,1746205602288,-258.75,0.00019168,3]
[359638875,1746205602308,-776.28,0.00019168,3]
[359638876,1746205602330,-646.2747745,0.00019172,2]
[359638877,1746205602352,-300.0,0.00019172,2]
[359638878,1746205602374,-500.0,0.00019173,2]
[359638879,1746205602396,-500.0,0.00019173,2]
[359638880,1746205602419,-500.0,0.00019173,2]
[359638881,1746205602440,-511.29337322,0.00019173,2]
[359638882,1746205602459,-474.25382378,0.00019173,2]
[359638883,1746205602479,-500.0,0.00019173,2]
[359638884,1746205602500,-500.0,0.00019173,2]
[359638885,1746205602521,-500.0,0.00019173,2]
[359638886,1746205602541,-500.0,0.00019173,2]
[359638887,1746205602561,-186.07892562,0.00019173,2]
[359638888,1746205602580,-500.91052564,0.00019173,2]
[359638889,1746205602600,-500.0,0.00019173,2]
[359638890,1746205602620,-287.74968114,0.00019173,2]
[359638910,1746205831951,-888.76355299,0.000189,2]
[359638911,1746205831962,-164.21011832,0.00019078,2]
[359638912,1746205831974,-469.8910422,0.00019135,2]
[359638913,1746205831984,-186.56,0.00019168,3]
[359638914,1746205831994,-186.56,0.00019168,3]
[359638915,1746205832010,-559.71,0.00019168,3]
[359638916,1746205832020,-300.0,0.00019172,2]
[359638917,1746205832029,-500.0,0.00019173,2]
[359638918,1746205832039,-500.0,0.00019173,2]
[359638919,1746205832049,-500.0,0.00019173,2]
[359638920,1746205832060,-500.0,0.00019173,2]
[359638921,1746205832069,-500.0,0.00019173,2]
[359638922,1746205832079,-500.0,0.00019173,2]
[359638924,1746205832091,-500.0,0.00019173,2]
[359638926,1746205832101,-200.24419171,0.00019177,2]
[359638928,1746205832110,-560.83443331,0.00019177,2]
[359638930,1746205832120,-500.0,0.00019178,2]
[359638932,1746205832130,-224.22702494,0.00019178,2]
[359638936,1746205832151,-275.77297506,0.00019178,2]
[359638938,1746205832161,-500.0,0.00019178,2]
[359638940,1746205832171,-500.0,0.00019178,2]
[359638942,1746205832181,-70.99240581,0.00019178,2]
[359639150,1746205838067,-500.0,0.00019178,2]
[359639153,1746205838078,-500.0,0.00019178,2]
[359639156,1746205838088,-500.0,0.00019178,2]
[359639158,1746205838098,-500.0,0.00019178,2]
[359639160,1746205838106,-429.2321733,0.00019178,2]
[359639163,1746205838116,-400.0,0.00019178,2]
[359639165,1746205838126,-500.0,0.00019178,2]
[359639167,1746205838135,-865.06,0.00019178,2]
[359639169,1746205838145,-501.40281923,0.00019178,2]
[359639171,1746205838155,-746.66,0.00019178,2]
[359639173,1746205838165,-364.09303456,0.00019178,2]
[359639176,1746205838175,-400.0,0.00019178,2]
[359639178,1746205838185,-500.0,0.00019178,2]
[359639180,1746205838195,-400.0,0.00019178,2]
[359639182,1746205838204,-400.0,0.00019178,2]
[359639184,1746205838214,-400.0,0.00019178,2]
[359639186,1746205838224,-400.0,0.00019178,2]
[359639188,1746205838234,-400.0,0.00019178,2]
[359639190,1746205838243,-162.43234244,0.00019178,2]
[359639192,1746205838253,-400.0,0.00019178,2]
[359639194,1746205838263,-400.0,0.00019178,2]
[359639196,1746205838273,-400.0,0.00019178,2]
[359639198,1746205838282,-118.56470758,0.00019178,2]
[359639498,1746205843292,-813.87529242,0.00019178,2]
[359639500,1746205843301,-400.0,0.00019178,2]
[359639501,1746205843311,-332.50896758,0.00019178,2]
[359639502,1746205843323,-67.49103242,0.00019178,2]
[359639503,1746205843332,-400.0,0.00019178,2]
[359639505,1746205843342,-215.71250141,0.00019178,2]
[359639508,1746205843353,-184.28749859,0.00019178,2]
[359639510,1746205843363,-400.0,0.00019178,2]
[359639511,1746205843373,-400.0,0.00019178,2]
[359639513,1746205843382,-71.68696758,0.00019178,2]
[359639516,1746205843396,-328.31303242,0.00019178,2]
[359639518,1746205843406,-200.0,0.00019178,2]
[359639520,1746205843415,-400.0,0.00019178,2]
[359639522,1746205843424,-400.0,0.00019178,2]
[359639524,1746205843434,-277.94847908,0.00019178,2]
[359639526,1746205843444,-400.0,0.00019178,2]
[359639528,1746205843454,-400.0,0.00019178,2]
[359639530,1746205843464,-500.0,0.00019178,2]
[359639532,1746205843473,-592.247674,0.00019178,2]
[359639535,1746205843492,-344.012326,0.00019178,2]
[359639537,1746205843502,-400.0,0.00019178,2]
[359639539,1746205843511,-400.0,0.00019178,2]
[359639541,1746205843522,-400.0,0.00019178,2]
[359639543,1746205843531,-525.41,0.00019178,2]
[359639545,1746205843540,-400.0,0.00019178,2]
[359639547,1746205843550,-508.28902017,0.00019178,2]
[359639549,1746205843559,-400.0,0.00019178,2]
[359639551,1746205843568,-400.0,0.00019178,2]
[359639553,1746205843578,-651.77,0.00019178,2]
[359639555,1746205843587,-400.0,0.00019178,2]
[359639557,1746205843596,-400.0,0.00019178,2]
[359639559,1746205843606,-400.0,0.00019178,2]
[359639561,1746205843616,-400.0,0.00019178,2]
[359639563,1746205843625,-490.85,0.00019178,2]
[359639565,1746205843635,-400.0,0.00019178,2]
[359639567,1746205843644,-210.88164109,0.00019178,2]
[359639569,1746205843654,-400.0,0.00019178,2]
[359639571,1746205843663,-465.36769749,0.00019178,2]
[359639573,1746205843672,-501.01086386,0.00019178,2]
[359639575,1746205843682,-400.0,0.00019178,2]
[359639577,1746205843692,-400.0,0.00019178,2]
[359639579,1746205843701,-400.0,0.00019178,2]
[359639581,1746205843711,-464.41,0.00019178,2]
[359639583,1746205843720,-400.0,0.00019178,2]
[359639585,1746205843730,-650.74,0.00019178,2]
[359639588,1746205843739,-721.91,0.00019178,2]
[359639591,1746205843748,-400.0,0.00019178,2]
[359639594,1746205843757,-400.0,0.00019178,2]
[359639597,1746205843767,-400.0,0.00019178,2]
[359639600,1746205843776,-457.81,0.00019178,2]
[359639603,1746205843786,-400.0,0.00019178,2]
[359639606,1746205843796,-400.0,0.00019178,2]
[359639609,1746205843805,-400.0,0.00019178,2]
[359639612,1746205843814,-400.0,0.00019178,2]
[359639615,1746205843824,-400.0,0.00019178,2]
[359639618,1746205843834,-400.0,0.00019178,2]
[359639621,1746205843843,-585.53,0.00019178,2]
[359639624,1746205843853,-400.0,0.00019178,2]
[359639627,1746205843862,-400.0,0.00019178,2]
[359639630,1746205843871,-400.0,0.00019178,2]
[359639633,1746205843881,-400.0,0.00019178,2]
[359639635,1746205843890,-400.0,0.00019178,2]
[359639637,1746205843899,-400.0,0.00019178,2]
[359639639,1746205843909,-400.0,0.00019178,2]
[359639641,1746205843918,-400.0,0.00019178,2]
[359639642,1746205843930,-400.0,0.00019178,2]
[359639644,1746205843939,-400.0,0.00019178,2]
[359639650,1746205843987,-400.0,0.00019178,2]
[359639652,1746205843997,-400.0,0.00019178,2]
[359639654,1746205844007,-729.66,0.00019178,2]
[359639656,1746205844017,-597.88,0.00019178,2]
[359639658,1746205844026,-400.0,0.00019178,2]
[359639660,1746205844035,-400.0,0.00019178,2]
[359639662,1746205844045,-465.10407521,0.00019178,2]
[359639664,1746205844054,-400.0,0.00019178,2]
[359639666,1746205844064,-400.0,0.00019178,2]
[359639668,1746205844073,-400.0,0.00019178,2]
[359639670,1746205844083,-400.0,0.00019178,2]
[359639672,1746205844093,-400.0,0.00019178,2]
[359639674,1746205844102,-400.0,0.00019178,2]
[359639676,1746205844111,-400.0,0.00019178,2]
[359639678,1746205844121,-400.0,0.00019178,2]
[359639680,1746205844131,-423.04,0.00019178,2]
[359639682,1746205844140,-400.0,0.00019178,2]
[359639684,1746205844150,-588.2,0.00019178,2]
[359639686,1746205844159,-500.0,0.00019178,2]
[359639688,1746205844169,-500.0,0.00019178,2]
[359639690,1746205844178,-500.0,0.00019178,2]
[359639692,1746205844187,-500.0,0.00019178,2]
[359639694,1746205844197,-500.0,0.00019178,2]
[359639696,1746205844206,-400.0,0.00019178,2]
[359639698,1746205844216,-818.98,0.00019178,2]
[359639700,1746205844225,-161.79809955,0.00019178,2]
[359639702,1746205844234,-544.15,0.00019178,2]
[359639704,1746205844244,-400.0,0.00019178,2]
[359639706,1746205844253,-400.0,0.00019178,2]
[359639708,1746205844263,-168.27415923,0.00019178,2]
[359639710,1746205844273,-184.77688995,0.00019178,2]
[359639711,1746205844283,-433.0,0.00019178,2]
[359639713,1746205844293,-357.71531911,0.00019178,2]
[359639715,1746205844303,-400.0,0.00019178,2]
[359639717,1746205844313,-400.0,0.00019178,2]
[359639719,1746205844323,-960.95,0.00019178,2]
[359639721,1746205844332,-296.59410375,0.00019178,2]
[359639723,1746205844341,-400.0,0.00019178,2]
[359639725,1746205844350,-400.0,0.00019178,2]
[359639727,1746205844360,-400.0,0.00019178,2]
[359639729,1746205844369,-407.38,0.00019178,2]
[359639731,1746205844379,-400.0,0.00019178,2]
[359639733,1746205844388,-1764.41,0.00019178,2]
[359639735,1746205844397,-825.59,0.00019178,2]
[359639737,1746205844407,-661.7,0.00019178,2]
[359639739,1746205844416,-445.9,0.00019178,2]
[359639741,1746205844425,-1167.44,0.00019178,2]
[359639743,1746205844434,-400.0,0.00019178,2]
[359639745,1746205844444,-400.0,0.00019178,2]
[359639747,1746205844453,-400.0,0.00019178,2]
[359639749,1746205844463,-487.99,0.00019178,2]
[359639751,1746205844472,-699.39,0.00019178,2]
[359639753,1746205844482,-400.0,0.00019178,2]
[359639755,1746205844491,-400.0,0.00019178,2]
[359639757,1746205844501,-400.0,0.00019178,2]
[359639759,1746205844510,-400.0,0.00019178,2]
[359639760,1746205844521,-400.0,0.00019178,2]
[359639763,1746205844531,-4594.72,0.00019178,2]
[359639765,1746205844540,-400.0,0.00019178,2]
[359639767,1746205844550,-447.81,0.00019178,2]
[359639769,1746205844560,-400.0,0.00019178,2]
[359639771,1746205844569,-400.0,0.00019178,2]
[359639772,1746205844578,-500.82081359,0.00019178,2]
[359639774,1746205844587,-400.0,0.00019178,2]
[359639775,1746205844597,-361.73601495,0.00019178,2]
[359639776,1746205844606,-400.0,0.00019178,2]
[359639777,1746205844615,-1687.99,0.00019178,2]
[359639778,1746205844625,-887.17,0.00019178,2]
[359639779,1746205844634,-400.0,0.00019178,2]
[359639780,1746205844644,-400.0,0.00019178,2]
[359639781,1746205844653,-1194.54,0.00019178,2]
[359639782,1746205844663,-400.0,0.00019178,2]
[359639783,1746205844673,-412.88,0.00019178,2]
[359639784,1746205844682,-400.0,0.00019178,2]
[359639785,1746205844692,-400.0,0.00019178,2]
[359639786,1746205844701,-208.67611531,0.00019178,2]
[359639811,1746205846175,-291.32388469,0.00019178,2]
[359639812,1746205846184,-400.0,0.00019178,2]
[359639813,1746205846194,-511.88245525,0.00019178,2]
[359639814,1746205846203,-590.69,0.00019178,2]
[359639815,1746205846213,-1642.12,0.00019178,2]
[359639816,1746205846223,-500.0,0.00019178,2]
[359639817,1746205846232,-400.0,0.00019178,2]
[359639818,1746205846241,-400.0,0.00019178,2]
[359639819,1746205846251,-1590.34,0.00019178,2]
[359639820,1746205846261,-400.0,0.00019178,2]
[359639821,1746205846270,-400.0,0.00019178,2]
[359639822,1746205846280,-500.0,0.00019178,2]
[359639823,1746205846289,-400.0,0.00019178,2]
[359639824,1746205846298,-430.99,0.00019178,2]
[359639825,1746205846307,-400.0,0.00019178,2]
[359639826,1746205846316,-321.36670757,0.00019178,2]
[359639860,1746206921336,2688.68267037,0.000212,30]
[359639861,1746206922752,829.06468458,0.00021,10]
[359639863,1746206943278,175.164665,0.00021,10]
[359639864,1746206946600,155.835792,0.00021,10]
[359639924,1746207032947,-441.64321008,0.00018413,2]
[359639925,1746207032958,-151.0,0.00018585,2]
[359639926,1746207032968,-441.64321008,0.00018857,2]
[359639927,1746207032978,-409.13954856,0.00019071,2]
[359639928,1746207032987,-1341.30548389,0.00019071,2]
[359639929,1746207032996,-409.13954854,0.00019073,2]
[359639930,1746207033007,-409.13954854,0.00019075,2]
[359639931,1746207033016,-173.36380912,0.00019076,2]
[359639944,1746207038073,-235.77573942,0.00019076,2]
[359639945,1746207038084,-409.13954854,0.00019078,2]
[359639946,1746207038093,-441.64321008,0.00019099,2]
[359639947,1746207038103,-1685.48091659,0.000191,2]
[359639948,1746207038113,-375.9128337,0.00019135,2]
[359639949,1746207038123,-300.0,0.00019167,2]
[359639950,1746207038133,-300.0,0.00019167,2]
[359639951,1746207038142,-888.41,0.00019168,3]
[359639952,1746207038152,-444.21,0.00019168,3]
[359639953,1746207038162,-222.1,0.00019168,3]
[359639954,1746207038172,-62.54456271,0.00019168,3]
[359640588,1746207046917,-603.80543729,0.00019168,3]
[359640589,1746207046928,-392.58410332,0.0001917,2]
[359640590,1746207046941,-378.66355051,0.0001917,2]
[359640591,1746207046952,-579.63151272,0.0001917,2]
[359640592,1746207046964,-500.0,0.0001917,2]
[359640593,1746207046978,-1726.75263538,0.0001917,2]
[359640594,1746207046989,-258.05989583,0.0001917,2]
[359640595,1746207047001,-1726.75263538,0.0001917,2]
[359640596,1746207047013,-1726.75263538,0.0001917,2]
[359640597,1746207047026,-1726.75263538,0.0001917,2]
[359640598,1746207047038,-1726.75263538,0.0001917,2]
[359640599,1746207047050,-1726.75263538,0.0001917,2]
[359640600,1746207047062,-1726.75263538,0.0001917,2]
[359640601,1746207047073,-1726.75263538,0.0001917,2]
[359640602,1746207047085,-1726.75263538,0.0001917,2]
[359640603,1746207047098,-1726.75263538,0.0001917,2]
[359640605,1746207047109,-1726.75263538,0.0001917,2]
[359640606,1746207047120,-1726.75263538,0.0001917,2]
[359640607,1746207047131,-1726.75263538,0.0001917,2]
[359640608,1746207047144,-1726.75263538,0.0001917,2]
[359640609,1746207047155,-1726.75263538,0.0001917,2]
[359640610,1746207047167,-1726.75263538,0.0001917,2]
[359640611,1746207047178,-1726.75263538,0.0001917,2]
[359640612,1746207047190,-1726.75263538,0.0001917,2]
[359640613,1746207047200,-1726.75263538,0.0001917,2]
[359640614,1746207047210,-1726.75263538,0.0001917,2]
[359640615,1746207047221,-1726.75263538,0.0001917,2]
[359640616,1746207047232,-1726.75263538,0.0001917,2]
[359640617,1746207047243,-1726.75263538,0.0001917,2]
[359640618,1746207047253,-1726.75263538,0.0001917,2]
[359640619,1746207047266,-1726.75263538,0.0001917,2]
[359640620,1746207047278,-1726.75263538,0.0001917,2]
[359640621,1746207047290,-1726.75263538,0.0001917,2]
[359640622,1746207047303,-1726.75263538,0.0001917,2]
[359640623,1746207047316,-1726.75263538,0.0001917,2]
[359640624,1746207047330,-1726.75263538,0.0001917,2]
[359640625,1746207047343,-1726.75263538,0.0001917,2]
[359640627,1746207047355,-1726.75263538,0.0001917,2]
[359640629,1746207047368,-1726.75263538,0.0001917,2]
[359640631,1746207047380,-1726.75263538,0.0001917,2]
[359640633,1746207047392,-1726.75263538,0.0001917,2]
[359640635,1746207047405,-1726.75263538,0.0001917,2]
[359640636,1746207047415,-1726.75263538,0.0001917,2]
[359640638,1746207047425,-1726.75263538,0.0001917,2]
[359640639,1746207047435,-1726.75263538,0.0001917,2]
[359640642,1746207047445,-1726.75263538,0.0001917,2]
[359640643,1746207047456,-1726.75263538,0.0001917,2]
[359640645,1746207047468,-1726.75263538,0.0001917,2]
[359640646,1746207047481,-1726.75263538,0.0001917,2]
[359640648,1746207047494,-1726.75263538,0.0001917,2]
[359640649,1746207047506,-1726.75263538,0.0001917,2]
[359640650,1746207047517,-1726.75263538,0.0001917,2]
[359640651,1746207047528,-1726.75263538,0.0001917,2]
[359640652,1746207047538,-1726.75263538,0.0001917,2]
[359640653,1746207047549,-1726.75263538,0.0001917,2]
[359640654,1746207047559,-1726.75263538,0.0001917,2]
[359640655,1746207047571,-1726.75263538,0.0001917,2]
[359640656,1746207047581,-1726.75263538,0.0001917,2]
[359640657,1746207047593,-1726.75263538,0.0001917,2]
[359640658,1746207047604,-1726.75263538,0.0001917,2]
[359640659,1746207047615,-1726.75263538,0.0001917,2]
[359640660,1746207047625,-501.12682132,0.00019173,2]
[359640661,1746207047636,-500.0,0.00019173,2]
[359640662,1746207047646,-606.82577184,0.00019173,2]
[359640663,1746207047656,-500.0,0.00019173,2]
[359640664,1746207047668,-589.32908041,0.00019173,2]
[359640665,1746207047679,-500.0,0.00019173,2]
[359640666,1746207047689,-500.0,0.00019173,2]
[359640667,1746207047699,-500.0,0.00019173,2]
[359640668,1746207047710,-500.0,0.00019173,2]
[359640669,1746207047720,-500.0,0.00019173,2]
[359640670,1746207047732,-512.11058216,0.00019173,2]
[359640671,1746207047742,-500.0,0.00019173,2]
[359640672,1746207047753,-407.86192941,0.00019177,2]
[359640673,1746207047763,-400.0,0.00019178,2]
[359640674,1746207047774,-400.0,0.00019178,2]
[359640675,1746207047786,-400.0,0.00019178,2]
[359640676,1746207047797,-423.10301029,0.00019178,2]
[359640677,1746207047808,-400.0,0.00019178,2]
[359640678,1746207047819,-400.0,0.00019178,2]
[359640679,1746207047829,-400.0,0.00019178,2]
[359640680,1746207047840,-623.62,0.00019178,2]
[359640681,1746207047851,-438.74,0.00019178,2]
[359640682,1746207047862,-400.0,0.00019178,2]
[359640683,1746207047873,-400.0,0.00019178,2]
[359640684,1746207047884,-572.97,0.00019178,2]
[359640685,1746207047894,-400.0,0.00019178,2]
[359640686,1746207047905,-400.0,0.00019178,2]
[359640687,1746207047915,-400.0,0.00019178,2]
[359640688,1746207047926,-400.0,0.00019178,2]
[359640689,1746207047937,-699.26,0.00019178,2]
[359640690,1746207047949,-400.0,0.00019178,2]
[359640692,1746207047959,-400.0,0.00019178,2]
[359640694,1746207047970,-405.42,0.00019178,2]
[359640695,1746207047981,-400.0,0.00019178,2]
[359640696,1746207047991,-400.0,0.00019178,2]
[359640697,1746207048001,-400.0,0.00019178,2]
[359640698,1746207048014,-400.0,0.00019178,2]
[359640699,1746207048024,-495.91969351,0.00019178,2]
[359640700,1746207048035,-329.6988967,0.00019178,2]
[359640701,1746207048046,-400.0,0.00019178,2]
[359640702,1746207048058,-634.13,0.00019178,2]
[359640703,1746207048069,-400.0,0.00019178,2]
[359640704,1746207048080,-400.0,0.00019178,2]
[359640705,1746207048091,-400.0,0.00019178,2]
[359640706,1746207048102,-400.0,0.00019178,2]
[359640707,1746207048113,-624.62,0.00019178,2]
[359640708,1746207048123,-400.0,0.00019178,2]
[359640709,1746207048134,-400.0,0.00019178,2]
[359640710,1746207048145,-400.0,0.00019178,2]
[359640711,1746207048155,-434.0,0.00019178,2]
[359640712,1746207048166,-445.05,0.00019178,2]
[359640713,1746207048177,-400.0,0.00019178,2]
[359640714,1746207048187,-400.0,0.00019178,2]
[359640715,1746207048198,-400.0,0.00019178,2]
[359640716,1746207048209,-400.0,0.00019178,2]
[359640717,1746207048220,-691.83,0.00019178,2]
[359640718,1746207048230,-400.0,0.00019178,2]
[359640719,1746207048241,-275.34861187,0.00019178,2]
[359640720,1746207048252,-400.0,0.00019178,2]
[359640721,1746207048262,-400.0,0.00019178,2]
[359640722,1746207048273,-400.0,0.00019178,2]
[359640723,1746207048283,-400.0,0.00019178,2]
[359640724,1746207048293,-400.0,0.00019178,2]
[359640725,1746207048304,-400.0,0.00019178,2]
[359640726,1746207048316,-561.14,0.00019178,2]
[359640727,1746207048334,-259.50108829,0.00019178,2]
[359640728,1746207048344,-400.0,0.00019178,2]
[359640729,1746207048355,-501.3577796,0.00019178,2]
[359640730,1746207048367,-172.34542243,0.00019178,2]
[359640731,1746207048378,-400.0,0.00019178,2]
[359640732,1746207048388,-400.0,0.00019178,2]
[359640733,1746207048399,-400.0,0.00019178,2]
[359640734,1746207048409,-400.0,0.00019178,2]
[359640735,1746207048420,-400.0,0.00019178,2]
[359640736,1746207048430,-400.0,0.00019178,2]
[359640737,1746207048441,-247.98368895,0.00019178,2]
[359640738,1746207048452,-400.0,0.00019178,2]
[359640739,1746207048462,-400.0,0.00019178,2]
[359640740,1746207048473,-500.0,0.00019178,2]
[359640741,1746207048484,-500.0,0.00019178,2]
[359640742,1746207048494,-500.0,0.00019178,2]